bitfinex-derivatives/quotes_SOLF0:USTF0_20250424
["timestamp","ask_amount","ask_price","bid_price","bid_amount"]
[1745509309437,40.23971857,149.91,149.82,31.841]
[1745509309634,40.23971857,149.91,149.82,6.141]
[1745509309835,27.6817,149.91,149.82,6.141]
[1745509310133,25.7,149.91,149.85,12.55801857]
[1745509310333,25.7,149.91,149.87,12.55801857]
[1745509310635,32.3688,149.91,149.88,6.6697]
[1745509311332,25.7,149.91,149.87,12.55801857]
[1745509311539,505.76,149.94,149.87,12.55801857]
[1745509311733,25.68,149.94,149.89,12.55801857]
[1745509312037,32.3474,149.94,149.91,6.6683]
[1745509312233,25.68,149.94,149.87,12.55801857]
[1745509312536,6.6688,149.91,149.87,12.55801857]
[1745509312735,25.68,149.94,149.87,12.55801857]
[1745509312937,6.6678,149.93,149.9,6.6687]
[1745509313137,6.6678,149.93,149.87,12.55801857]
[1745509313437,6.6678,149.93,149.9,6.6686]
[1745509314538,6.668,149.92,149.9,6.6686]
[1745509315339,6.6678,149.93,149.9,6.6686]
[1745509316141,6.6682,149.92,149.89,6.6692]
[1745509316341,6.6682,149.92,149.87,12.55801857]
[1745509316837,6.6678,149.93,149.9,6.6687]
[1745509317940,6.6678,149.93,149.88,1.8931]
[1745509318337,25.68,149.94,149.89,12.55801857]
[1745509318844,25.68,149.94,149.91,12.55801857]
[1745509319138,32.3472,149.94,149.89,12.55801857]
[1745509319441,25.68,149.94,149.89,12.55801857]
[1745509319638,6.6664,149.96,149.91,12.55801857]
[1745509320741,6.6668,149.95,149.91,12.55801857]
[1745509320943,25.66,149.97,149.91,12.55801857]
[1745509321246,25.66,149.97,149.93,6.6673]
[1745509321444,25.66,149.97,149.91,12.55801857]
[1745509322642,25.66,149.97,149.93,6.6673]
[1745509323247,25.66,149.97,149.92,6.6679]
[1745509323444,25.66,149.97,149.89,16.43681857]
[1745509323642,25.66,149.97,149.89,3.8788]
[1745509323945,12.55801857,149.96,149.88,1.8931]
[1745509324148,25.66,149.97,149.88,14.45111857]
[1745509324346,6.6667,149.96,149.93,6.6673]
[1745509324544,25.66,149.97,149.9,12.55801857]
[1745509324847,6.6665,149.96,149.9,12.55801857]
[1745509325043,25.66,149.97,149.92,12.55801857]
[1745509325243,25.66,150.0,149.92,12.55801857]
[1745509325444,32.3247,150.0,149.97,6.6655]
[1745509325746,25.66,150.0,149.94,12.55801857]
[1745509325947,25.66,150.0,149.99,6.6649]
[1745509326244,6.6638,150.02,149.96,12.55801857]
[1745509326445,6.6638,150.02,150.0,6.6644]
[1745509326642,6.6641,150.01,149.96,12.55801857]
[1745509326947,6.6641,150.01,149.99,6.6649]
[1745509327246,6.6638,150.02,149.99,6.6649]
[1745509327748,25.66,150.03,149.98,6.6652]
[1745509327948,25.66,150.03,149.96,12.55801857]
[1745509328140,25.66,150.03,149.95,6.6664]
[1745509328445,12.55801857,150.02,149.95,6.6664]
[1745509328748,12.55801857,150.02,149.94,8.5672]
[1745509328946,6.6661,149.97,149.94,8.5672]
[1745509329147,25.66,149.99,149.94,1.9004]
[1745509329348,6.6671,149.95,149.92,12.55801857]
[1745509329545,6.6671,149.95,149.9,42.13981857]
[1745509329747,25.66,149.99,149.95,6.6664]
[1745509329941,6.6661,149.97,149.92,12.55801857]
[1745509330348,6.6661,149.97,149.94,6.667]
[1745509330549,6.6663,149.96,149.94,6.667]
[1745509330747,25.66,149.99,149.92,12.55801857]
[1745509330947,25.66,149.99,149.92,19.22591857]
[1745509331745,6.6672,149.94,149.91,6.6683]
[1745509331950,12.55801857,149.98,149.9,29.5818]
[1745509332249,12.55801857,149.98,149.9,6.6687]
[1745509332651,12.55801857,149.96,149.88,2.0028]
[1745509332843,6.6683,149.92,149.89,6.6691]
[1745509333045,6.6683,149.92,149.88,2.0028]
[1745509333347,6.6678,149.93,149.88,2.0028]
[1745509333541,6.6678,149.93,149.89,12.55801857]
[1745509333950,6.6681,149.92,149.9,6.6686]
[1745509334551,6.6678,149.93,149.9,6.6686]
[1745509334952,6.6678,149.93,149.91,6.6684]
[1745509335148,6.6676,149.94,149.91,6.6684]
[1745509335753,6.6677,149.93,149.9,6.6688]
[1745509335943,25.66,149.95,149.89,12.55801857]
[1745509336146,25.66,149.95,149.92,6.6678]
[1745509336852,6.6674,149.94,149.92,6.6678]
[1745509337053,25.66,149.95,149.93,6.6675]
[1745509337351,25.66,149.95,149.91,12.55801857]
[1745509337555,25.66,149.98,149.94,6.6669]
[1745509337854,6.6663,149.97,149.94,6.6669]
[1745509338153,6.6663,149.97,149.94,6.6668]
[1745509338451,6.6662,149.97,149.94,6.6668]
[1745509338654,25.66,149.98,149.93,6.6674]
[1745509338855,6.6669,149.95,149.91,12.55801857]
[1745509339052,38.21801857,149.98,149.89,12.55801857]
[1745509339251,12.55801857,149.96,149.88,2.0028]
[1745509339453,6.6678,149.93,149.88,2.0028]
[1745509339754,6.6678,149.93,149.91,6.6683]
[1745509340250,6.6674,149.94,149.92,6.668]
[1745509340446,38.21801857,149.98,149.92,6.668]
[1745509340854,6.6672,149.94,149.92,6.668]
[1745509341354,38.21801857,149.98,149.92,6.668]
[1745509341653,6.6669,149.95,149.89,12.55801857]
[1745509342252,6.6669,149.95,149.93,6.6675]
[1745509342855,6.6669,149.95,149.92,6.6678]
[1745509343258,6.6669,149.95,149.89,12.55801857]
[1745509343553,6.6669,149.95,149.92,6.6677]
[1745509344455,6.6674,149.94,149.91,6.6683]
[1745509344660,38.21801857,149.98,149.91,6.6683]
[1745509345458,6.6674,149.94,149.91,6.6683]
[1745509345657,6.6674,149.94,149.92,6.668]
[1745509346058,6.6674,149.94,149.89,12.55801857]
[1745509346258,6.6674,149.94,149.91,6.6683]
[1745509346747,6.6677,149.93,149.91,6.6683]
[1745509346952,38.21801857,149.98,149.91,6.6683]
[1745509347153,38.21801857,149.98,149.92,6.6679]
[1745509347453,6.6674,149.94,149.89,12.55801857]
[1745509347653,38.21801857,149.98,149.91,6.6683]
[1745509348258,38.21801857,149.98,149.9,6.6689]
[1745509348450,12.55801857,149.96,149.88,2.0028]
[1745509348856,12.55801857,149.94,149.88,2.0028]
[1745509349057,25.64,149.93,149.86,1.8839]
[1745509349458,6.6687,149.91,149.88,6.6698]
[1745509349662,6.6687,149.91,149.86,1.8839]
[1745509349963,6.669,149.9,149.88,6.6696]
[1745509352765,6.669,149.9,149.85,14.61101857]
[1745509352766,12.55801857,149.92,149.85,2.053]
[1745509352965,25.64,149.93,149.85,14.61101857]
[1745509353366,6.6687,149.91,149.89,6.6693]
[1745509354570,6.669,149.9,149.88,6.6696]
[1745509355264,6.6694,149.89,149.87,6.67]
[1745509355766,25.64,149.93,149.85,2.053]
[1745509356063,12.55801857,149.9,149.81,14.57651857]
[1745509356265,25.64,149.89,149.81,16.47491857]
[1745509356463,6.6705,149.87,149.81,16.47491857]
[1745509356867,6.6705,149.87,149.84,6.6713]
[1745509357067,6.6705,149.87,149.81,16.47491857]
[1745509357565,6.6705,149.87,149.84,6.6712]
[1745509357763,6.6719,149.84,149.77,1.875]
[1745509357970,25.64,149.85,149.78,12.55801857]
[1745509358266,6.6725,149.82,149.78,12.55801857]
[1745509358466,25.64,149.85,149.77,3.7734]
[1745509358667,25.64,149.85,149.78,6.6741]
[1745509358862,6.6729,149.82,149.78,6.6741]
[1745509359070,6.6729,149.82,149.77,3.7734]
[1745509359269,25.64,149.85,149.79,6.6737]
[1745509359469,6.6722,149.83,149.79,6.6737]
[1745509360668,6.6725,149.82,149.79,6.6737]
[1745509360966,12.55801857,149.84,149.78,6.6741]
[1745509361368,12.55801857,149.84,149.77,1.8984]
[1745509361570,25.64,149.85,149.77,1.8984]
[1745509361767,25.64,149.85,149.78,12.55801857]
[1745509361963,25.64,149.85,149.8,6.6731]
[1745509362574,25.64,149.85,149.81,6.6728]
[1745509362770,25.64,149.85,149.78,12.55801857]
[1745509363172,25.64,149.85,149.77,1.8984]
[1745509363775,6.6729,149.82,149.78,6.6739]
[1745509363966,12.55801857,149.84,149.75,1.889]
[1745509365072,6.6728,149.82,149.75,1.889]
[1745509365269,25.64,149.81,149.75,1.889]
[1745509365773,25.64,149.81,149.78,6.674]
[1745509366675,32.3129,149.81,149.78,6.674]
[1745509366973,25.64,149.81,149.79,6.6736]
[1745509367575,25.64,149.84,149.76,12.55801857]
[1745509368176,6.6727,149.82,149.79,6.6738]
[1745509368375,25.64,149.84,149.76,12.55801857]
[1745509368669,12.55801857,149.82,149.72,14.60961857]
[1745509368865,6.6741,149.79,149.76,6.6749]
[1745509369069,32.3341,149.79,149.76,6.6749]
[1745509369277,32.3341,149.79,149.77,6.6747]
[1745509369575,25.66,149.79,149.77,6.6747]
[1745509370975,25.66,149.79,149.74,12.55801857]
[1745509370976,25.66,149.79,149.78,6.6743]
[1745509371576,25.66,149.79,149.72,2.0516]
[1745509371777,25.66,149.79,149.72,14.60961857]
[1745509372077,32.3341,149.79,149.76,6.6749]
[1745509372571,6.6731,149.81,149.72,14.60961857]
[1745509372777,25.66,149.85,149.78,12.55801857]
[1745509373179,6.6728,149.82,149.79,6.6736]
[1745509373376,38.21801857,149.85,149.76,12.55801857]
[1745509373777,6.6727,149.82,149.76,12.55801857]
[1745509374076,38.21801857,149.85,149.76,12.55801857]
[1745509374276,6.6731,149.81,149.78,6.6741]
[1745509376079,6.6731,149.81,149.76,12.55801857]
[1745509376484,6.6731,149.81,149.78,6.6741]
[1745509376779,6.6731,149.81,149.76,12.55801857]
[1745509377379,6.6731,149.81,149.78,6.674]
[1745509377878,25.62,149.81,149.74,12.55801857]
[1745509378080,25.62,149.81,149.73,25.66]
[1745509378376,38.17801857,149.81,149.73,38.21801857]
[1745509378577,38.17801857,149.81,149.75,6.6754]
[1745509378878,6.6745,149.78,149.75,6.6754]
[1745509379579,6.674,149.79,149.76,6.6751]
[1745509380179,6.6736,149.8,149.77,6.6747]
[1745509381383,25.62,149.81,149.77,6.6747]
[1745509381677,25.62,149.81,149.76,6.675]
[1745509381876,6.6741,149.79,149.76,6.675]
[1745509382073,38.17801857,149.81,149.74,6.6758]
[1745509382274,38.17801857,149.81,149.72,2.0516]
[1745509382581,2.0568,149.8,149.72,2.0516]
[1745509382881,2.0568,149.8,149.73,6.6762]
[1745509383181,6.6752,149.76,149.73,6.6762]
[1745509383381,25.64,149.77,149.74,6.6761]
[1745509383776,25.64,149.77,149.72,2.0516]
[1745509384981,6.6757,149.75,149.72,8.7283]
[1745509385181,25.64,149.77,149.7,4.0231]
[1745509385482,6.6761,149.74,149.71,6.6771]
[1745509385785,25.64,149.77,149.7,4.0231]
[1745509385984,25.64,149.77,149.69,12.55801857]
[1745509386185,6.6763,149.74,149.69,12.55801857]
[1745509386488,12.55801857,149.76,149.67,40.10961857]
[1745509386781,12.55801857,149.76,149.67,14.46961857]
[1745509386985,12.55801857,149.74,149.67,1.9116]
[1745509387185,6.6775,149.71,149.68,6.6784]
[1745509387684,6.6772,149.72,149.67,1.9116]
[1745509388083,25.64,149.73,149.67,1.9116]
[1745509388287,6.6774,149.71,149.68,6.6785]
[1745509388688,6.6771,149.72,149.69,6.6782]
[1745509388988,25.64,149.73,149.67,1.9116]
[1745509389188,25.64,149.73,149.66,2.0591]
[1745509389189,25.64,149.73,149.66,8.7385]
[1745509389387,25.64,149.73,149.66,2.0591]
[1745509389887,25.64,149.73,149.66,6.6795]
[1745509390285,25.64,149.73,149.63,1.9719]
[1745509390286,12.55801857,149.7,149.63,1.9719]
[1745509390588,25.64,149.69,149.6,38.19801857]
[1745509390787,6.6793,149.67,149.63,6.6807]
[1745509391589,6.6797,149.66,149.62,6.6812]
[1745509391886,25.64,149.69,149.61,6.6817]
[1745509392992,25.64,149.69,149.6,38.19801857]
[1745509393389,6.6795,149.67,149.62,12.55801857]
[1745509394194,25.64,149.69,149.64,6.6802]
[1745509395290,6.6793,149.67,149.64,6.6802]
[1745509395495,25.64,149.69,149.65,6.68]
[1745509395798,6.679,149.68,149.65,6.68]
[1745509396101,6.679,149.68,149.64,6.6804]
[1745509396398,6.679,149.68,149.63,1.9051]
[1745509396698,6.6794,149.67,149.64,6.6803]
[1745509397094,25.64,149.69,149.66,6.6796]
[1745509397396,32.3186,149.69,149.66,6.6796]
[1745509398192,493.23801857,149.74,149.66,12.55801857]
[1745509398396,25.64,149.73,149.66,12.55801857]
[1745509398596,25.64,149.73,149.68,6.6787]
[1745509399099,6.6774,149.71,149.68,6.6787]
[1745509399299,25.64,149.73,149.69,6.6782]
[1745509399499,25.64,149.73,149.66,12.55801857]
[1745509399699,6.6776,149.71,149.68,6.6785]
[1745509400100,25.64,149.73,149.64,38.19801857]
[1745509400300,25.64,149.73,149.66,6.6794]
[1745509400700,6.6784,149.69,149.66,6.6794]
[1745509400894,25.64,149.73,149.66,6.6794]
[1745509401103,25.64,149.73,149.65,6.6799]
[1745509401298,25.64,149.73,149.64,38.19801857]
[1745509401602,25.64,149.73,149.66,6.6794]
[1745509401901,6.6785,149.69,149.66,6.6794]
[1745509402097,25.64,149.73,149.67,6.6791]
[1745509402395,25.64,149.73,149.66,12.55801857]
[1745509402599,25.64,149.73,149.69,6.678]
[1745509402902,25.64,149.73,149.68,12.55801857]
[1745509403298,25.64,149.73,149.7,6.6776]
[1745509403700,25.64,149.73,149.7,6.6775]
[1745509404205,32.3168,149.73,149.7,6.6775]
[1745509404393,25.64,149.73,149.68,12.55801857]
[1745509404793,32.3166,149.73,149.68,12.55801857]
[1745509405101,25.64,149.73,149.68,12.55801857]
[1745509405602,25.64,149.73,149.68,6.6785]
[1745509406305,6.6777,149.71,149.68,6.6785]
[1745509408904,6.678,149.7,149.67,6.6789]
[1745509409105,25.64,149.73,149.66,12.55801857]
[1745509410008,6.6772,149.72,149.68,6.6787]
[1745509410201,25.64,149.73,149.68,12.55801857]
[1745509410406,25.64,149.73,149.69,2.013]
[1745509410705,25.64,149.73,149.69,3.9593]
[1745509411214,6.6772,149.72,149.69,10.6373]
[1745509411404,25.64,149.73,149.69,3.9593]
[1745509411603,32.3167,149.73,149.7,6.6776]
[1745509411907,25.64,149.73,149.69,3.9593]
[1745509412303,25.64,149.73,149.71,6.6773]
[1745509412508,6.6763,149.74,149.7,12.55801857]
[1745509412910,25.62,149.76,149.73,6.6765]
[1745509413108,25.62,149.76,149.7,12.55801857]
[1745509414213,6.6758,149.75,149.72,6.6768]
[1745509415603,32.2952,149.76,149.7,12.55801857]
[1745509416208,6.6757,149.75,149.7,12.55801857]
[1745509416612,25.62,149.76,149.7,6.6776]
[1745509416800,6.6768,149.73,149.7,6.6776]
[1745509417913,6.6763,149.74,149.71,6.6773]
[1745509418213,25.62,149.76,149.69,5.9056]
[1745509418513,25.62,149.76,149.71,6.6773]
[1745509418712,25.62,149.76,149.69,5.9056]
[1745509419012,6.6767,149.73,149.7,6.6776]
[1745509419813,6.6775,149.71,149.69,2.013]
[1745509420208,25.62,149.72,149.66,12.55801857]
[1745509420414,25.62,149.72,149.68,6.6787]
[1745509420709,25.62,149.72,149.65,27.6686]
[1745509420909,6.6781,149.7,149.67,6.6789]
[1745509421109,25.62,149.72,149.65,27.6686]
[1745509421309,32.2971,149.72,149.69,6.6779]
[1745509421613,25.62,149.72,149.66,14.62521857]
[1745509422014,6.6776,149.71,149.68,6.6783]
[1745509422417,6.6776,149.71,149.66,14.62521857]
[1745509422611,6.6776,149.71,149.68,6.6784]
[1745509422813,32.2971,149.72,149.66,14.62521857]
[1745509423114,25.62,149.72,149.66,14.62521857]
[1745509423413,6.6774,149.71,149.66,14.62521857]
[1745509423714,6.6774,149.71,149.69,6.6781]
[1745509423908,6.6776,149.71,149.66,14.62521857]
[1745509424514,32.2971,149.72,149.66,14.62521857]
[1745509425217,25.62,149.72,149.66,14.62521857]
[1745509425412,38.17801857,149.72,149.65,2.0486]
[1745509425714,6.6792,149.68,149.65,6.6798]
[1745509427318,6.6792,149.68,149.66,6.6796]
[1745509427616,6.6785,149.69,149.66,6.6796]
[1745509428416,6.6788,149.68,149.65,6.6799]
[1745509429017,6.6792,149.67,149.65,6.6799]
[1745509429314,6.6792,149.67,149.62,42.09271857]
[1745509429919,6.6792,149.67,149.64,6.6803]
[1745509431219,6.6797,149.66,149.64,6.6803]
[1745509431918,6.6794,149.67,149.64,6.6803]
[1745509432615,6.6797,149.66,149.64,6.6803]
[1745509432821,38.17801857,149.72,149.64,6.6803]
[1745509433418,6.6794,149.67,149.64,6.6803]
[1745509433619,38.17801857,149.72,149.63,6.6808]
[1745509433620,12.55801857,149.7,149.63,6.6808]
[1745509433926,6.6795,149.67,149.62,42.09271857]
[1745509434120,38.17801857,149.72,149.62,42.09271857]
[1745509434419,6.679,149.68,149.62,42.09271857]
[1745509434617,6.679,149.68,149.65,6.6798]
[1745509434811,6.679,149.68,149.62,42.09271857]
[1745509435222,6.6795,149.67,149.64,6.6802]
[1745509435520,38.17801857,149.72,149.62,42.09271857]
[1745509435820,6.6791,149.68,149.65,6.68]
[1745509437819,6.6785,149.69,149.66,6.6796]
[1745509438118,38.17801857,149.72,149.62,42.09271857]
[1745509438318,6.679,149.68,149.65,6.6797]
[1745509438519,38.17801857,149.72,149.62,42.09271857]
[1745509438925,6.6789,149.68,149.65,6.6801]
[1745509439219,6.6789,149.68,149.62,42.09271857]
[1745509439422,6.6789,149.68,149.65,8.05599019]
[1745509439921,33.67599019,149.72,149.67,8.05599019]
[1745509440113,25.62,149.72,149.69,8.05599019]
[1745509440515,32.2972,149.72,149.69,8.05599019]
[1745509440917,25.62,149.72,149.7,6.6775]
[1745509441117,8.05599019,149.74,149.7,6.6775]
[1745509441323,8.05599019,149.74,149.69,8.05599019]
[1745509441524,6.6776,149.71,149.69,8.05599019]
[1745509442024,6.6778,149.7,149.69,8.05599019]
[1745509442321,8.05599019,149.72,149.67,8.05599019]
[1745509442523,6.6776,149.71,149.67,8.05599019]
[1745509442924,6.6776,149.71,149.68,6.6785]
[1745509443526,6.6779,149.7,149.68,6.6785]
[1745509444025,8.05599019,149.72,149.68,6.6785]
[1745509444222,6.6776,149.71,149.68,6.6785]
[1745509444425,8.05599019,149.74,149.69,14.73399019]
[1745509444627,8.05599019,149.74,149.69,8.05599019]
[1745509444823,6.6772,149.72,149.69,14.73409019]
[1745509445124,8.05599019,149.74,149.69,14.73409019]
[1745509446026,8.05599019,149.74,149.7,6.6777]
[1745509446325,6.6773,149.72,149.69,8.05599019]
[1745509446525,6.6773,149.72,149.7,6.6776]
[1745509446725,6.6773,149.72,149.69,8.05599019]
[1745509447226,6.6767,149.73,149.69,8.05599019]
[1745509447724,8.05599019,149.74,149.69,8.05599019]
[1745509448526,6.6765,149.73,149.71,6.6774]
[1745509449026,8.05599019,149.74,149.69,8.05599019]
[1745509449326,8.05599019,149.72,149.68,1.8903]
[1745509449923,6.6776,149.71,149.68,1.8903]
[1745509450422,6.6782,149.7,149.68,1.8903]
[1745509450622,8.05599019,149.72,149.67,8.05599019]
[1745509450623,25.6,149.71,149.67,8.05599019]
[1745509451623,25.6,149.71,149.69,8.05599019]
[1745509452029,40.33219019,149.74,149.71,6.6772]
[1745509452224,25.6,149.74,149.71,8.05599019]
[1745509452527,33.65599019,149.74,149.7,8.05599019]
[1745509452828,6.6767,149.73,149.7,14.73359019]
[1745509454024,6.6767,149.73,149.71,6.6773]
[1745509454327,25.6,149.74,149.71,8.05599019]
[1745509454726,25.6,149.74,149.72,6.6767]
[1745509455532,25.6,149.74,149.73,14.73249019]
[1745509455731,25.6,149.77,149.73,14.73249019]
[1745509456331,6.6753,149.76,149.73,14.73249019]
[1745509456634,25.6,149.77,149.73,14.73249019]
[1745509457631,6.6758,149.75,149.73,14.73249019]
[1745509457830,8.05599019,149.76,149.71,8.05599019]
[1745509458531,6.676,149.75,149.72,6.6767]
[1745509458829,8.05599019,149.76,149.72,6.6767]
[1745509459132,6.676,149.75,149.72,6.6767]
[1745509460333,6.6761,149.74,149.72,6.6767]
[1745509460632,8.05599019,149.76,149.71,14.73319019]
[1745509460826,6.6764,149.74,149.71,14.73319019]
[1745509461229,8.05599019,149.76,149.7,14.73359019]
[1745509461431,6.677,149.72,149.7,8.05599019]
[1745509461730,6.677,149.72,149.69,10.09109019]
[1745509462030,6.6775,149.71,149.69,8.05599019]
[1745509463237,6.6778,149.7,149.69,8.05599019]
[1745509463833,6.6778,149.7,149.68,8.05599019]
[1745509465129,6.6778,149.7,149.68,14.73469019]
[1745509465334,8.05599019,149.72,149.68,8.05599019]
[1745509465836,6.6779,149.7,149.68,8.05599019]
[1745509466836,6.6784,149.69,149.67,14.73489019]
[1745509467136,8.05599019,149.7,149.65,11.96309019]
[1745509467337,25.58,149.69,149.67,8.05599019]
[1745509467635,25.58,149.69,149.67,14.73489019]
[1745509468439,32.2583,149.69,149.67,14.73489019]
[1745509469138,25.58,149.69,149.67,14.73489019]
[1745509469838,25.58,149.69,149.68,6.6787]
[1745509470142,25.58,149.69,149.67,8.05599019]
[1745509470437,25.58,149.69,149.67,14.73499019]
[1745509470638,32.2584,149.69,149.67,14.73499019]
[1745509470941,25.58,149.69,149.67,14.73499019]
[1745509471139,25.58,149.69,149.68,6.6787]
[1745509471441,25.58,149.69,149.67,8.05599019]
[1745509471934,25.58,149.69,149.67,14.73499019]
[1745509472639,25.58,149.69,149.67,8.05599019]
[1745509472836,25.58,149.75,149.67,8.05599019]
[1745509473043,25.58,149.75,149.7,8.05599019]
[1745509473342,25.58,149.75,149.72,8.05599019]
[1745509473737,32.2557,149.75,149.72,8.05599019]
[1745509473934,25.58,149.75,149.72,8.05599019]
[1745509475044,25.58,149.75,149.74,8.05599019]
[1745509476443,32.2544,149.78,149.74,14.73209019]
[1745509477043,6.6748,149.77,149.74,14.73209019]
[1745509477245,33.63599019,149.78,149.72,8.05599019]
[1745509477444,8.05599019,149.76,149.7,8.05599019]
[1745509478247,8.05599019,149.74,149.7,8.05599019]
[1745509478440,6.6765,149.73,149.7,8.05599019]
[1745509479143,33.63599019,149.74,149.68,8.05599019]
[1745509479344,8.05599019,149.72,149.67,9.93199019]
[1745509479745,6.6778,149.71,149.67,16.61079019]
[1745509481348,14.73309019,149.72,149.68,6.6787]
[1745509481547,8.05599019,149.72,149.68,6.6787]
[1745509481849,8.05599019,149.72,149.69,6.6782]
[1745509482346,8.05599019,149.72,149.67,9.93199019]
[1745509483149,8.05599019,149.7,149.66,8.05599019]
[1745509484450,6.679,149.68,149.65,6.6799]
[1745509485354,6.6784,149.69,149.66,6.6794]
[1745509485547,25.58,149.7,149.66,8.05599019]
[1745509485850,32.2579,149.7,149.67,6.6789]
[1745509486151,32.2579,149.7,149.66,8.05599019]
[1745509486552,32.2579,149.7,149.67,6.6791]
[1745509486848,32.2579,149.7,149.66,8.05599019]
[1745509487151,25.58,149.7,149.69,6.6783]
[1745509487450,6.6771,149.72,149.69,6.6783]
[1745509487851,6.6771,149.72,149.7,6.6778]
[1745509488457,25.58,149.73,149.7,8.05599019]
[1745509488752,25.58,149.76,149.72,8.05599019]
[1745509489152,32.2553,149.76,149.74,8.05599019]
[1745509489351,25.58,149.76,149.71,12.57463523]
[1745509489554,25.58,149.77,149.71,12.57463523]
[1745509489747,25.58,149.77,149.75,6.6755]
[1745509490154,25.58,149.77,149.73,12.57463523]
[1745509490756,25.58,149.77,149.75,6.6754]
[1745509491357,25.58,149.77,149.76,6.6752]
[1745509491655,25.58,149.77,149.73,12.57463523]
[1745509491856,25.58,149.77,149.75,6.6754]
[1745509492255,25.58,149.77,149.73,12.57463523]
[1745509492956,25.58,149.77,149.76,6.6752]
[1745509494354,6.6733,149.81,149.77,6.6744]
[1745509494559,25.58,149.81,149.75,12.57463523]
[1745509494860,25.58,149.81,149.73,12.57463523]
[1745509495363,25.58,149.81,149.72,25.58]
[1745509495562,6.6752,149.76,149.71,12.57463523]
[1745509495861,25.56,149.77,149.69,401.05123523]
[1745509496062,25.56,149.77,149.7,6.6775]
[1745509496257,25.56,149.77,149.69,375.49123523]
[1745509496660,6.6761,149.74,149.71,6.6772]
[1745509496957,25.56,149.77,149.69,375.49123523]
[1745509497159,6.6754,149.76,149.73,6.6764]
[1745509497462,25.56,149.77,149.71,12.57463523]
[1745509497660,32.235,149.77,149.74,6.676]
[1745509498460,25.56,149.77,149.75,6.6752]
[1745509498660,25.56,149.77,149.73,12.57463523]
[1745509499159,6.6745,149.78,149.75,6.6755]
[1745509499460,6.6745,149.78,149.73,12.57463523]
[1745509499761,25.56,149.8,149.76,6.6751]
[1745509500059,25.56,149.8,149.73,12.57463523]
[1745509501766,6.6745,149.78,149.73,12.57463523]
[1745509501966,25.54,149.81,149.75,12.57463523]
[1745509502265,12.57463523,149.84,149.75,12.57463523]
[1745509502465,25.54,149.85,149.77,12.57463523]
[1745509502862,6.6723,149.83,149.79,6.6736]
[1745509503062,6.6723,149.83,149.77,12.57463523]
[1745509504168,6.6726,149.82,149.79,6.6736]
[1745509504867,25.54,149.85,149.77,19.24913523]
[1745509505169,12.57463523,149.84,149.76,6.0291]
[1745509506465,6.6736,149.8,149.77,6.6747]
[1745509506769,25.54,149.81,149.76,1.977]
[1745509506967,6.6736,149.8,149.77,6.6743]
[1745509507171,6.6736,149.8,149.76,1.977]
[1745509507564,6.6736,149.8,149.77,6.6743]
[1745509507872,25.54,149.81,149.76,14.55163523]
[1745509508065,480.78,149.87,149.78,12.57463523]
[1745509508371,25.54,149.85,149.78,12.57463523]
[1745509508570,25.54,149.85,149.81,6.6729]
[1745509508770,6.6718,149.84,149.81,6.6729]
[1745509508966,25.54,149.85,149.78,12.57463523]
[1745509509171,25.54,149.85,149.83,6.6718]
[1745509509468,6.6704,149.87,149.8,12.57463523]
[1745509509769,6.6704,149.87,149.84,6.6713]
[1745509509970,6.6707,149.86,149.8,38.11463523]
[1745509510164,25.54,149.88,149.8,38.11463523]
[1745509510363,25.54,149.88,149.83,6.6718]
[1745509510566,6.6705,149.87,149.8,38.11463523]
[1745509510872,25.54,149.88,149.82,12.57463523]
[1745509511073,32.2101,149.88,149.85,6.6709]